fUSD/lending_fUSD_20240330
["ID","MTS","AMOUNT","RATE_DAILY","PERIOD"]
[321054246,1711831831863,-156.12,0.00039626,15]
[321054247,1711831831873,-821.73608398,0.00039664,2]
[321054248,1711831831883,-8008.61,0.00039684,2]
[321054249,1711831831893,-499.99,0.00039684,2]
[321054250,1711831831902,-556.19,0.00039699,2]
[321054251,1711831831916,-292.55,0.00039707,3]
[321054252,1711831831925,-540.0,0.00039726,7]
[321054253,1711831831935,-505.0,0.00039726,7]
[321054254,1711831831944,-1583.16576573,0.00039764,2]
[321054255,1711831831956,-3388.20519839,0.00039764,2]
[321054256,1711831831974,-500.77266238,0.00039764,2]
[321054257,1711831832058,-18427.8563735,0.00039764,2]
[321054258,1711831832068,-512.0,0.00039791,2]
[321054259,1711831832077,-525.75,0.00039898,2]
[321054260,1711831832087,-155.0,0.00039915,60]
[321054261,1711831832096,-645.73,0.0003994,2]
[321054262,1711831832106,-156.5,0.00039966,2]
[321054263,1711831832115,-4253.28735301,0.0004,20]
[321054265,1711831837674,-1479.71264699,0.0004,20]
[321054266,1711831837684,-692.33706181,0.0004,4]
[321054267,1711831837694,-650.0,0.000401,3]
[321054268,1711831837703,-156.5,0.00040383,2]
[321054269,1711831837712,-170.37734038,0.00040408,2]
[321054270,1711831837721,-505.0,0.00040685,7]
[321054271,1711831837731,-962.0,0.00040689,2]
[321054272,1711831837739,-722.383,0.00040689,2]
[321054273,1711831837749,-213.0,0.00040689,2]
[321054274,1711831837760,-150.0,0.00040689,2]
[321054275,1711831837770,-159.0,0.00040689,2]
[321054276,1711831837779,-207.0,0.00040689,2]
[321054277,1711831837790,-34414.89280368,0.00040689,2]
[321054278,1711831837841,-2644.56953041,0.00040689,2]
[321054279,1711831837854,-1997.12586,0.00040689,2]
[321054280,1711831837915,-457.79150304,0.00040689,2]
[321054297,1711831839848,-21.91330287,0.00040689,2]
[321054298,1711831839857,-299.0,0.00040689,2]
[321054299,1711831839867,-947.373,0.00040689,2]
[321054300,1711831839876,-152.0,0.00040714,3]
[321054301,1711831839885,-156.5,0.000408,2]
[321054302,1711831839895,-963.28145893,0.000409,2]
[321054303,1711831839906,-351.7002076,0.000409,2]
[321054304,1711831839921,-2446.50918847,0.000409,2]
[321054368,1711831842939,-1670.345442,0.000409,2]
[321054371,1711831842949,-18136.37170349,0.000409,2]
[321054374,1711831842960,-171.72,0.00040911,2]
[321054376,1711831842970,-19533.3344,0.00040991,2]
[321054378,1711831842979,-165.4836938,0.00040995,2]
[321054379,1711831842989,-7500.0,0.00040995,2]
[321054381,1711831842999,-3368.5161918,0.00041,2]
[321054382,1711831843008,-559.31045954,0.00041,4]
[321054383,1711831843017,-20752.06983302,0.00041,2]
[321054384,1711831843027,-2200.0,0.00041,4]
[321054385,1711831843037,-1000.0,0.00041,7]
[321054386,1711831843046,-150.0,0.00041007,2]
[321054387,1711831843055,-157.033105,0.00041084,2]
[321054388,1711831843064,-157.033105,0.00041085,3]
[321054389,1711831843073,-192.94649433,0.00041085,2]
[321054390,1711831843082,-157.033105,0.00041086,2]
[321054391,1711831843092,-157.033105,0.00041087,3]
[321054392,1711831843101,-157.033105,0.00041088,2]
[321054393,1711831843111,-157.033105,0.00041089,3]
[321054394,1711831843120,-157.033105,0.0004109,2]
[321054395,1711831843129,-157.033105,0.00041091,3]
[321054396,1711831843138,-11995.4421411,0.00041091,2]
[321054397,1711831843147,-5413.7025645,0.00041091,2]
[321054398,1711831843157,-157.033105,0.00041092,2]
[321054399,1711831843167,-3373.70527389,0.00041093,2]
[321054400,1711831843176,-195.43126315,0.00041093,2]
[321054401,1711831843185,-236.18168364,0.00041093,2]
[321054402,1711831843195,-2896.07223177,0.00041093,4]
[321054403,1711831843204,-157.033105,0.00041093,3]
[321054404,1711831843214,-1026.36527386,0.00041094,2]
[321054405,1711831843223,-500.0,0.00041095,2]
[321054406,1711831843232,-509.26153766,0.00041095,2]
[321054407,1711831843241,-500.0,0.00041095,4]
[321054408,1711831843251,-500.0,0.00041095,4]
[321054409,1711831843260,-500.0,0.00041095,4]
[321054410,1711831843270,-500.0,0.00041095,4]
[321054411,1711831843279,-500.0,0.00041095,4]
[321054412,1711831843289,-500.0,0.00041095,4]
[321054413,1711831843298,-500.0,0.00041095,4]
[321054414,1711831843307,-500.0,0.00041095,4]
[321054415,1711831843316,-500.0,0.00041095,4]
[321054416,1711831843325,-500.0,0.00041095,4]
[321054417,1711831843334,-500.0,0.00041095,4]
[321054418,1711831843343,-500.0,0.00041095,4]
[321054419,1711831843352,-500.0,0.00041095,4]
[321054420,1711831843361,-500.0,0.00041095,4]
[321054421,1711831843371,-500.0,0.00041095,4]
[321054422,1711831843380,-500.0,0.00041095,4]
[321054423,1711831843389,-500.0,0.00041095,4]
[321054424,1711831843398,-500.0,0.00041095,4]
[321054425,1711831843407,-500.0,0.00041095,4]
[321054426,1711831843416,-500.0,0.00041095,4]
[321054427,1711831843426,-500.0,0.00041095,4]
[321054428,1711831843435,-500.0,0.00041095,4]
[321054429,1711831843443,-544.2957883,0.00041095,4]
[321054430,1711831843453,-500.0,0.00041095,4]
[321054431,1711831843462,-500.0,0.00041095,4]
[321054432,1711831843470,-221.36196237,0.00041095,4]
[321054433,1711831843481,-500.0,0.00041095,4]
[321054434,1711831843491,-500.0,0.00041095,4]
[321054435,1711831843501,-500.0,0.00041095,4]
[321054436,1711831843511,-500.0,0.00041095,4]
[321054437,1711831843520,-525.54226106,0.00041095,4]
[321054438,1711831843529,-500.0,0.00041095,4]
[321054439,1711831843538,-529.76657982,0.00041095,4]
[321054440,1711831843548,-500.0,0.00041095,4]
[321054441,1711831843557,-500.0,0.00041095,4]
[321054442,1711831843567,-500.0,0.00041095,4]
[321054443,1711831843576,-500.0,0.00041095,4]
[321054444,1711831843585,-510.83014626,0.00041095,4]
[321054445,1711831843594,-500.0,0.00041095,4]
[321054446,1711831843604,-281.27342261,0.00041095,4]
[321054447,1711831843614,-500.0,0.00041095,2]
[321054448,1711831843625,-523.90438077,0.00041095,4]
[321054449,1711831843636,-500.0,0.00041095,4]
[321054450,1711831843648,-500.0,0.00041095,4]
[321054451,1711831843658,-500.0,0.00041095,4]
[321054452,1711831843669,-500.0,0.00041095,4]
[321054453,1711831843681,-529.40654343,0.00041095,4]
[321054454,1711831843691,-500.0,0.00041095,4]
[321054455,1711831843700,-500.0,0.00041095,4]
[321054456,1711831843710,-532.0144002,0.00041095,4]
[321054457,1711831843721,-500.0,0.00041095,4]
[321054458,1711831843730,-390.59283522,0.00041095,4]
[321054459,1711831843739,-500.0,0.00041095,4]
[321054460,1711831843748,-500.0,0.00041095,4]
[321054461,1711831843757,-500.0,0.00041095,4]
[321054462,1711831843767,-505.80172696,0.00041095,4]
[321054463,1711831843776,-517.57030112,0.00041095,4]
[321054464,1711831843785,-500.0,0.00041095,4]
[321054465,1711831843794,-500.0,0.00041095,4]
[321054466,1711831843803,-500.0,0.00041095,4]
[321054467,1711831843812,-512.89020157,0.00041095,4]
[321054468,1711831843822,-500.0,0.00041095,4]
[321054469,1711831843831,-554.2189761,0.00041095,4]
[321054470,1711831843840,-500.0,0.00041095,4]
[321054471,1711831843850,-500.0,0.00041095,4]
[321054472,1711831843859,-918.29,0.00041095,4]
[321054473,1711831843868,-500.0,0.00041095,4]
[321054474,1711831843878,-500.0,0.00041095,4]
[321054475,1711831843887,-500.0,0.00041095,4]
[321054476,1711831843897,-500.0,0.00041095,4]
[321054477,1711831843906,-500.0,0.00041095,4]
[321054478,1711831843915,-500.0,0.00041095,4]
[321054479,1711831843927,-500.0,0.00041095,4]
[321054480,1711831843936,-500.0,0.00041095,4]
[321054481,1711831843945,-500.0,0.00041095,4]
[321054482,1711831843954,-526.5548875,0.00041095,4]
[321054483,1711831843963,-500.0,0.00041095,4]
[321054484,1711831843971,-537.5889073,0.00041095,4]
[321054485,1711831843981,-500.0,0.00041095,4]
[321054486,1711831843990,-364.33632903,0.00041095,4]
[321054487,1711831843999,-500.0,0.00041095,4]
[321054488,1711831844009,-500.0,0.00041095,4]
[321054489,1711831844018,-531.73060243,0.00041095,4]
[321054490,1711831844028,-514.68192203,0.00041095,4]
[321054491,1711831844037,-500.0,0.00041095,4]
[321054492,1711831844046,-500.0,0.00041095,4]
[321054493,1711831844056,-500.0,0.00041095,4]
[321054494,1711831844066,-500.0,0.00041095,4]
[321054495,1711831844076,-500.0,0.00041095,4]
[321054496,1711831844085,-500.0,0.00041095,4]
[321054497,1711831844095,-500.0,0.00041095,4]
[321054498,1711831844104,-500.0,0.00041095,4]
[321054499,1711831844114,-500.0,0.00041095,4]
[321054500,1711831844123,-500.0,0.00041095,4]
[321054501,1711831844132,-500.0,0.00041095,4]
[321054502,1711831844141,-500.0,0.00041095,4]
[321054503,1711831844151,-500.0,0.00041095,4]
[321054504,1711831844161,-500.0,0.00041095,4]
[321054505,1711831844171,-500.0,0.00041095,4]
[321054506,1711831844181,-500.0,0.00041095,4]
[321054507,1711831844191,-500.0,0.00041095,4]
[321054508,1711831844201,-500.0,0.00041095,15]
[321054509,1711831844212,-500.0,0.00041095,4]
[321054510,1711831844221,-500.0,0.00041095,4]
[321054511,1711831844230,-500.0,0.00041095,4]
[321054512,1711831844239,-500.0,0.00041095,4]
[321054513,1711831844249,-500.0,0.00041095,4]
[321054514,1711831844259,-500.0,0.00041095,4]
[321054515,1711831844268,-500.0,0.00041095,4]
[321054516,1711831844278,-500.0,0.00041095,4]
[321054517,1711831844288,-3906.07,0.00041095,4]
[321054518,1711831844297,-500.0,0.00041095,4]
[321054519,1711831844306,-500.0,0.00041095,4]
[321054520,1711831844316,-511.18978528,0.00041095,4]
[321054521,1711831844326,-500.0,0.00041095,4]
[321054522,1711831844336,-300.0,0.00041095,2]
[321054523,1711831844345,-500.0,0.00041095,4]
[321054524,1711831844355,-500.0,0.00041095,4]
[321054525,1711831844365,-500.0,0.00041095,4]
[321054526,1711831844374,-500.0,0.00041095,4]
[321054527,1711831844383,-500.0,0.00041095,4]
[321054528,1711831844392,-500.0,0.00041095,4]
[321054529,1711831844402,-500.0,0.00041095,4]
[321054530,1711831844411,-500.0,0.00041095,4]
[321054531,1711831844420,-500.0,0.00041095,4]
[321054532,1711831844430,-641.14,0.00041095,4]
[321054533,1711831844439,-500.0,0.00041095,4]
[321054534,1711831844448,-711.65,0.00041095,4]
[321054535,1711831844457,-500.0,0.00041095,4]
[321054536,1711831844466,-753.15,0.00041095,4]
[321054537,1711831844476,-611.5,0.00041095,4]
[321054538,1711831844485,-500.0,0.00041095,4]
[321054539,1711831844494,-500.0,0.00041095,4]
[321054540,1711831844503,-500.0,0.00041095,4]
[321054541,1711831844513,-500.0,0.00041095,4]
[321054542,1711831844523,-500.0,0.00041095,4]
[321054543,1711831844532,-500.0,0.00041095,4]
[321054544,1711831844541,-500.0,0.00041095,4]
[321054545,1711831844551,-320.97483211,0.00041095,4]
[321054546,1711831844561,-500.0,0.00041095,4]
[321054547,1711831844570,-500.0,0.00041095,4]
[321054548,1711831844579,-214.7831512,0.00041095,4]
[321054549,1711831844589,-574.65,0.00041095,4]
[321054550,1711831844599,-500.0,0.00041095,4]
[321054551,1711831844610,-324.5790875,0.00041095,4]
[321054552,1711831844620,-500.0,0.00041095,4]
[321054553,1711831844630,-500.0,0.00041095,4]
[321054554,1711831844643,-500.0,0.00041095,4]
[321054555,1711831844652,-500.0,0.00041095,4]
[321054556,1711831844661,-555.72,0.00041095,4]
[321054557,1711831844671,-500.0,0.00041095,4]
[321054558,1711831844680,-500.0,0.00041095,4]
[321054559,1711831844689,-517.63,0.00041095,4]
[321054560,1711831844697,-500.0,0.00041095,4]
[321054561,1711831844707,-500.0,0.00041095,4]
[321054562,1711831844718,-500.0,0.00041095,4]
[321054563,1711831844727,-500.0,0.00041095,4]
[321054564,1711831844736,-500.0,0.00041095,4]
[321054565,1711831844746,-500.0,0.00041095,4]
[321054566,1711831844756,-581.07,0.00041095,4]
[321054567,1711831844766,-500.0,0.00041095,4]
[321054568,1711831844775,-500.0,0.00041095,4]
[321054569,1711831844785,-523.59,0.00041095,4]
[321054570,1711831844795,-500.0,0.00041095,2]
[321054571,1711831844806,-500.0,0.00041095,4]
[321054572,1711831844816,-500.0,0.00041095,4]
[321054573,1711831844826,-381.65711936,0.00041095,4]
[321054574,1711831844835,-500.0,0.00041095,4]
[321054575,1711831844844,-500.0,0.00041095,4]
[321054576,1711831844854,-500.0,0.00041095,4]
[321054577,1711831844865,-500.0,0.00041095,4]
[321054578,1711831844874,-500.0,0.00041095,4]
[321054579,1711831844883,-500.0,0.00041095,4]
[321054580,1711831844892,-500.0,0.00041095,4]
[321054581,1711831844901,-500.0,0.00041095,4]
[321054582,1711831844910,-500.0,0.00041095,4]
[321054583,1711831844921,-500.0,0.00041095,4]
[321054584,1711831844930,-500.0,0.00041095,4]
[321054585,1711831844939,-500.0,0.00041095,4]
[321054586,1711831844948,-500.0,0.00041095,4]
[321054587,1711831844957,-500.0,0.00041095,4]
[321054588,1711831844967,-500.0,0.00041095,4]
[321054589,1711831844976,-500.0,0.00041095,4]
[321054590,1711831844985,-500.0,0.00041095,4]
[321054591,1711831844994,-500.0,0.00041095,4]
[321054592,1711831845004,-500.0,0.00041095,4]
[321054593,1711831845013,-500.0,0.00041095,4]
[321054594,1711831845022,-500.0,0.00041095,4]
[321054595,1711831845032,-500.0,0.00041095,4]
[321054596,1711831845042,-500.0,0.00041095,4]
[321054597,1711831845052,-651.26,0.00041095,4]
[321054598,1711831845061,-500.0,0.00041095,4]
[321054599,1711831845070,-500.0,0.00041095,4]
[321054600,1711831845081,-500.0,0.00041095,4]
[321054601,1711831845092,-500.0,0.00041095,4]
[321054602,1711831845101,-500.0,0.00041095,4]
[321054603,1711831845110,-265.93715234,0.00041095,4]
[321054604,1711831845119,-500.0,0.00041095,4]
[321054605,1711831845129,-500.0,0.00041095,4]
[321054606,1711831845137,-319.36555944,0.00041095,4]
[321054607,1711831845148,-500.0,0.00041095,4]
[321054608,1711831845157,-299.94582198,0.00041095,4]
[321054609,1711831845166,-500.0,0.00041095,4]
[321054610,1711831845177,-500.0,0.00041095,4]
[321054611,1711831845186,-500.0,0.00041095,4]
[321054612,1711831845195,-500.0,0.00041095,4]
[321054613,1711831845205,-213.81821492,0.00041095,4]
[321054614,1711831845214,-500.0,0.00041095,4]
[321054615,1711831845223,-500.0,0.00041095,4]
[321054616,1711831845233,-500.0,0.00041095,4]
[321054617,1711831845242,-500.0,0.00041095,4]
[321054618,1711831845251,-500.0,0.00041095,4]
[321054619,1711831845260,-500.0,0.00041095,4]
[321054620,1711831845270,-500.0,0.00041095,4]
[321054621,1711831845279,-500.0,0.00041095,4]
[321054622,1711831845288,-643.02,0.00041095,4]
[321054623,1711831845297,-500.0,0.00041095,4]
[321054624,1711831845306,-500.0,0.00041095,4]
[321054625,1711831845316,-500.0,0.00041095,4]
[321054626,1711831845326,-609.26,0.00041095,4]
[321054627,1711831845335,-500.0,0.00041095,4]
[321054628,1711831845345,-500.0,0.00041095,4]
[321054629,1711831845355,-751.45,0.00041095,4]
[321054630,1711831845364,-500.0,0.00041095,4]
[321054631,1711831845374,-500.0,0.00041095,4]
[321054632,1711831845384,-1772.82,0.00041095,4]
[321054633,1711831845393,-193.23,0.00041095,4]
[321054634,1711831845402,-500.0,0.00041095,4]
[321054635,1711831845411,-500.0,0.00041095,4]
[321054636,1711831845422,-513.51,0.00041095,4]
[321054637,1711831845431,-500.0,0.00041095,4]
[321054638,1711831845440,-500.0,0.00041095,4]
[321054639,1711831845449,-1274.63,0.00041095,4]
[321054640,1711831845459,-500.0,0.00041095,4]
[321054641,1711831845469,-500.0,0.00041095,4]
[321054642,1711831845478,-500.0,0.00041095,4]
[321054643,1711831845487,-500.0,0.00041095,4]
[321054644,1711831845496,-532.08,0.00041095,4]
[321054645,1711831845505,-500.0,0.00041095,4]
[321054646,1711831845515,-376.28478558,0.00041095,4]
[321054652,1711831845700,-500.0,0.00041095,4]
[321054653,1711831845710,-500.0,0.00041095,4]
[321054654,1711831845720,-500.0,0.00041095,4]
[321054655,1711831845729,-500.0,0.00041095,4]
[321054656,1711831845739,-500.0,0.00041095,4]
[321054657,1711831845749,-500.0,0.00041095,4]
[321054658,1711831845758,-500.0,0.00041095,4]
[321054659,1711831845769,-500.0,0.00041095,4]
[321054660,1711831845778,-500.0,0.00041095,4]
[321054661,1711831845788,-500.0,0.00041095,4]
[321054662,1711831845797,-322.8945891,0.00041095,4]
[321054663,1711831845807,-500.0,0.00041095,4]
[321054664,1711831845816,-500.0,0.00041095,4]
[321054665,1711831845826,-500.0,0.00041095,4]
[321054666,1711831845836,-500.0,0.00041095,4]
[321054667,1711831845845,-229.95996742,0.00041095,4]
[321054668,1711831845855,-500.0,0.00041095,4]
[321054669,1711831845865,-570.26,0.00041095,4]
[321054670,1711831845874,-388.74033459,0.00041095,4]
[321054671,1711831845884,-500.0,0.00041095,4]
[321054672,1711831845894,-500.0,0.00041095,4]
[321054673,1711831845904,-492.47480291,0.00041095,4]
[321054674,1711831845913,-500.0,0.00041095,4]
[321054675,1711831845923,-500.0,0.00041095,4]
[321054676,1711831845933,-500.0,0.00041095,4]
[321054677,1711831845943,-500.0,0.00041095,4]
[321054678,1711831845953,-500.0,0.00041095,4]
[321054679,1711831845962,-500.0,0.00041095,4]
[321054680,1711831845972,-175.40329212,0.00041095,4]
[321054681,1711831845983,-500.0,0.00041095,4]
[321054682,1711831845992,-500.0,0.00041095,4]
[321054683,1711831846002,-500.0,0.00041095,4]
[321054684,1711831846011,-500.0,0.00041095,4]
[321054685,1711831846020,-500.0,0.00041095,4]
[321054686,1711831846030,-500.0,0.00041095,4]
[321054687,1711831846039,-500.0,0.00041095,4]
[321054688,1711831846049,-500.0,0.00041095,4]
[321054689,1711831846059,-236.0957143,0.00041095,4]
[321054690,1711831846069,-500.0,0.00041095,4]
[321054691,1711831846078,-500.0,0.00041095,4]
[321054692,1711831846088,-513.57,0.00041095,4]
[321054693,1711831846098,-500.0,0.00041095,4]
[321054694,1711831846108,-600.11319339,0.00041095,4]
[321054695,1711831846118,-500.0,0.00041095,4]
[321054696,1711831846129,-500.0,0.00041095,4]
[321054697,1711831846140,-597.93,0.00041095,4]
[321054698,1711831846149,-500.0,0.00041095,4]
[321054699,1711831846159,-500.0,0.00041095,4]
[321054700,1711831846169,-500.0,0.00041095,4]
[321054701,1711831846179,-500.0,0.00041095,4]
[321054702,1711831846188,-500.0,0.00041095,4]
[321054703,1711831846198,-500.0,0.00041095,4]
[321054704,1711831846209,-500.0,0.00041095,4]
[321054705,1711831846219,-500.0,0.00041095,4]
[321054706,1711831846229,-500.0,0.00041095,4]
[321054707,1711831846239,-500.0,0.00041095,4]
[321054708,1711831846249,-500.0,0.00041095,4]
[321054709,1711831846259,-500.0,0.00041095,4]
[321054710,1711831846269,-500.0,0.00041095,4]
[321054711,1711831846278,-500.0,0.00041095,4]
[321054712,1711831846288,-500.0,0.00041095,4]
[321054713,1711831846297,-500.0,0.00041095,4]
[321054714,1711831846308,-500.0,0.00041095,4]
[321054715,1711831846318,-186.68670616,0.00041095,4]
[321054716,1711831846328,-500.0,0.00041095,4]
[321054717,1711831846338,-749.18,0.00041095,4]
[321054718,1711831846348,-412.74087488,0.00041095,4]
[321054719,1711831846359,-500.0,0.00041095,4]
[321054720,1711831846369,-500.0,0.00041095,4]
[321054721,1711831846379,-591.73442565,0.00041095,4]
[321054722,1711831846389,-500.0,0.00041095,4]
[321054723,1711831846399,-500.0,0.00041095,4]
[321054724,1711831846409,-500.0,0.00041095,4]
[321054725,1711831846419,-500.0,0.00041095,4]
[321054726,1711831846430,-653.65,0.00041095,4]
[321054727,1711831846440,-500.0,0.00041095,4]
[321054728,1711831846449,-1481.56,0.00041095,4]
[321054729,1711831846459,-500.0,0.00041095,4]
[321054730,1711831846468,-500.0,0.00041095,4]
[321054731,1711831846478,-629.79,0.00041095,4]
[321054732,1711831846488,-500.0,0.00041095,4]
[321054733,1711831846497,-449.90034686,0.00041095,4]
[321054734,1711831846507,-1035.0,0.00041095,4]
[321054735,1711831846516,-500.0,0.00041095,4]
[321054736,1711831846526,-500.0,0.00041095,4]
[321054737,1711831846536,-4568.0,0.00041095,4]
[321054738,1711831846545,-500.0,0.00041095,4]
[321054739,1711831846554,-500.0,0.00041095,4]
[321054740,1711831846564,-500.0,0.00041095,4]
[321054741,1711831846574,-19266.68,0.00041095,4]
[321054742,1711831846584,-746.3,0.00041095,4]
[321054743,1711831846595,-500.0,0.00041095,4]
[321054744,1711831846606,-500.0,0.00041095,4]
[321054745,1711831846618,-500.0,0.00041095,4]
[321054746,1711831846631,-634.77,0.00041095,4]
[321054747,1711831846651,-500.0,0.00041095,4]
[321054748,1711831846661,-500.0,0.00041095,4]
[321054749,1711831846670,-506.91,0.00041095,4]
[321054750,1711831846682,-391.28235806,0.00041095,4]
[321054751,1711831846691,-1757.64,0.00041095,4]
[321054752,1711831846701,-513.37,0.00041095,4]
[321054753,1711831846711,-1752.89,0.00041095,4]
[321054754,1711831846720,-500.0,0.00041095,4]
[321054755,1711831846729,-2452.61,0.00041095,4]
[321054756,1711831846739,-500.0,0.00041095,4]
[321054757,1711831846749,-500.0,0.00041095,4]
[321054758,1711831846758,-500.0,0.00041095,4]
[321054759,1711831846767,-500.0,0.00041095,4]
[321054760,1711831846776,-608.3,0.00041095,4]
[321054761,1711831846786,-359.0497866,0.00041095,4]
[321054762,1711831846795,-2519.41,0.00041095,4]
[321054763,1711831846804,-500.0,0.00041095,4]
[321054764,1711831846813,-2287.71,0.00041095,4]
[321054765,1711831846822,-500.0,0.00041095,4]
[321054766,1711831846832,-10042.77,0.00041095,4]
[321054767,1711831846841,-2235.35,0.00041095,4]
[321054768,1711831846850,-500.0,0.00041095,4]
[321054769,1711831846859,-851.23,0.00041095,4]
[321054770,1711831846868,-500.0,0.00041095,4]
[321054771,1711831846877,-500.0,0.00041095,4]
[321054772,1711831846887,-500.0,0.00041095,4]
[321054773,1711831846897,-500.0,0.00041095,4]
[321054774,1711831846906,-500.0,0.00041095,4]
[321054775,1711831846916,-500.0,0.00041095,4]
[321054776,1711831846925,-500.0,0.00041095,4]
[321054777,1711831846934,-500.0,0.00041095,4]
[321054778,1711831846943,-531.30614207,0.00041095,4]
[321054779,1711831846951,-500.0,0.00041095,4]
[321054780,1711831846960,-500.0,0.00041095,4]
[321054781,1711831846969,-3785.5,0.00041095,4]
[321054782,1711831846979,-3665.11,0.00041095,4]
[321054783,1711831846988,-2092.94,0.00041095,4]
[321054784,1711831846997,-500.0,0.00041095,4]
[321054785,1711831847006,-500.0,0.00041095,4]
[321054786,1711831847015,-500.0,0.00041095,4]
[321054787,1711831847024,-962.24,0.00041095,4]
[321054788,1711831847033,-500.0,0.00041095,4]
[321054789,1711831847043,-500.0,0.00041095,4]
[321054790,1711831847052,-500.0,0.00041095,4]
[321054791,1711831847061,-787.93,0.00041095,4]
[321054792,1711831847070,-2989.96,0.00041095,4]
[321054793,1711831847080,-709.73,0.00041095,4]
[321054794,1711831847089,-495.50165345,0.00041095,4]
[321054795,1711831847099,-500.0,0.00041095,4]
[321054796,1711831847108,-500.0,0.00041095,4]
[321054797,1711831847118,-794.47,0.00041095,4]
[321054798,1711831847127,-2915.63,0.00041095,4]
[321054799,1711831847136,-1311.45,0.00041095,2]
[321054800,1711831847146,-500.0,0.00041095,4]
[321054801,1711831847155,-642.96,0.00041095,4]
[321054802,1711831847165,-500.0,0.00041095,4]
[321054803,1711831847176,-500.0,0.00041095,4]
[321054804,1711831847185,-500.0,0.00041095,4]
[321054805,1711831847194,-1419.31,0.00041095,4]
[321054806,1711831847204,-575.34,0.00041095,4]
[321054807,1711831847213,-500.0,0.00041095,4]
[321054808,1711831847223,-500.0,0.00041095,4]
[321054809,1711831847232,-2260.81,0.00041095,4]
[321054810,1711831847241,-385.60252536,0.00041095,4]
[321054811,1711831847255,-500.0,0.00041095,4]
[321054812,1711831847264,-754.89,0.00041095,4]
[321054813,1711831847274,-500.0,0.00041095,4]
[321054814,1711831847283,-500.0,0.00041095,4]
[321054815,1711831847293,-500.0,0.00041095,4]
[321054816,1711831847303,-542.57,0.00041095,4]
[321054817,1711831847313,-2113.88,0.00041095,4]
[321054818,1711831847322,-4973.13,0.00041095,4]
[321054819,1711831847332,-500.0,0.00041095,4]
[321054820,1711831847341,-500.0,0.00041095,4]
[321054821,1711831847351,-500.0,0.00041095,4]
[321054822,1711831847361,-2842.72,0.00041095,4]
[321054823,1711831847371,-500.0,0.00041095,4]
[321054824,1711831847384,-500.0,0.00041095,4]
[321054825,1711831847394,-500.0,0.00041095,4]
[321054826,1711831847404,-1120.8,0.00041095,4]
[321054827,1711831847414,-585.39,0.00041095,4]
[321054828,1711831847424,-500.0,0.00041095,4]
[321054829,1711831847433,-500.0,0.00041095,4]
[321054830,1711831847443,-500.0,0.00041095,4]
[321054831,1711831847453,-500.0,0.00041095,4]
[321054832,1711831847463,-500.0,0.00041095,4]
[321054833,1711831847472,-500.0,0.00041095,4]
[321054834,1711831847482,-541.3,0.00041095,4]
[321054835,1711831847491,-500.0,0.00041095,4]
[321054836,1711831847500,-500.0,0.00041095,4]
[321054837,1711831847510,-500.0,0.00041095,4]